bitfinex-derivatives/quotes_BTCF0:USTF0_20251204
["timestamp","ask_amount","ask_price","bid_price","bid_amount"]
[1764876306478,0.00258481,91032.0,91031.0,0.55784]
[1764876306774,0.00258481,91032.0,91017.0,0.0109837]
[1764876306775,0.00016479,91032.0,91017.0,0.0109837]
[1764876306977,0.00258481,91032.0,91025.0,0.0109829]
[1764876307183,0.00258481,91032.0,91031.0,0.55784]
[1764876307387,0.00016479,91032.0,91031.0,0.55784]
[1764876307686,0.00258481,91032.0,91031.0,0.55784]
[1764876307881,0.00016479,91032.0,91031.0,0.55784]
[1764876308078,0.00558481,91032.0,91031.0,0.55784]
[1764876308278,0.00316479,91032.0,91031.0,0.55784]
[1764876308481,0.00016479,91032.0,91031.0,0.55784]
[1764876308682,0.30780681,91032.0,91031.0,0.002]
[1764876308878,0.56864481,91032.0,91031.0,0.002]
[1764876309287,0.00116479,91032.0,91031.0,0.55984]
[1764876309887,0.0109801,91049.0,91048.0,0.27951]
[1764876310185,0.22640486,91058.0,91057.0,0.27951]
[1764876310381,0.0109777,91068.0,91067.0,0.27951]
[1764876310875,0.0109771,91073.0,91072.0,0.55784]
[1764876311079,0.00016429,91077.0,91072.0,0.55784]
[1764876311275,0.00027447,91086.0,91085.0,0.55784]
[1764876311479,0.00027447,91086.0,91067.0,0.23738256]
[1764876311480,0.0109734,91104.0,91076.0,0.22640486]
[1764876311679,0.0109736,91102.0,91090.0,0.0109749]
[1764876311979,0.22640486,91110.0,91088.0,0.0578252]
[1764876312178,0.16562,91120.0,91090.0,0.0001647]
[1764876312179,0.22640486,91100.0,91090.0,0.0001647]
[1764876312384,0.22640486,91100.0,91099.0,0.55784]
[1764876312582,0.0109735,91103.0,91102.0,0.55784]
[1764876312777,0.0109747,91093.0,91090.0,0.0001647]
[1764876312982,0.56748002,91091.0,91090.0,0.0001647]
[1764876313184,0.29324,91078.0,91072.0,0.001]
[1764876313385,0.00242002,91073.0,91072.0,0.55884]
[1764876313684,0.00242002,91073.0,91050.0,0.39022486]
[1764876313685,0.0109781,91065.0,91050.0,0.1747998]
[1764876313889,0.22640486,91060.0,91050.0,0.0109798]
[1764876314183,0.0109788,91059.0,91058.0,0.27951]
[1764876314383,0.0109783,91063.0,91062.0,0.55784]
[1764876314591,0.0001647,91064.0,91063.0,0.55784]
[1764876315286,0.00258472,91064.0,91057.0,0.0109789]
[1764876315492,0.00242002,91058.0,91055.0,0.0109791]
[1764876315685,0.00242002,91056.0,91055.0,0.2904891]
[1764876315883,0.0001647,91064.0,91063.0,0.55784]
[1764876316082,0.00258472,91064.0,91063.0,0.55784]
[1764876316282,0.0001647,91064.0,91063.0,0.55784]
[1764876316790,0.0109751,91090.0,91069.0,0.16382]
[1764876317083,0.22640486,91090.0,91089.0,0.55784]
[1764876317288,0.010975,91091.0,91090.0,0.27951]
[1764876317684,0.22640486,91099.0,91098.0,0.27951]
[1764876317885,0.0109758,91084.0,91081.0,0.0001647]
[1764876318084,0.008,91090.0,91081.0,0.0001647]
[1764876318284,0.008,91090.0,91089.0,0.55784]
[1764876318491,0.002,91090.0,91089.0,0.55784]
[1764876318986,0.39202486,91120.0,91081.0,0.0001647]
[1764876318987,0.0109731,91106.0,91099.0,0.0109738]
[1764876319182,0.05707552,91140.0,91109.0,0.55784]
[1764876319384,0.0109715,91120.0,91119.0,0.55784]
[1764876319588,0.22640486,91130.0,91119.0,0.55784]
[1764876319786,0.0109711,91123.0,91122.0,0.55784]
[1764876320090,0.1765894,91137.0,91122.0,0.55784]
[1764876320091,0.16562,91137.0,91122.0,0.55784]
[1764876320294,0.16562,91137.0,91126.0,0.0109706]
[1764876320295,0.003,91137.0,91126.0,0.0109706]
[1764876320487,0.003,91137.0,91136.0,0.55784]
[1764876320690,0.22640486,91160.0,91137.0,0.04685]
[1764876320878,0.22640486,91160.0,91137.0,1.54685]
[1764876321079,0.23737156,91160.0,91143.0,0.0109686]
[1764876321285,0.22640486,91153.0,91139.0,0.0001646]
[1764876321793,0.0109686,91144.0,91139.0,0.0001646]
[1764876322092,0.23737156,91160.0,91153.0,0.55784]
[1764876322287,0.0109659,91166.0,91164.0,0.27951]
[1764876322490,0.0109667,91159.0,91156.0,0.0001646]
[1764876322688,0.00242002,91157.0,91156.0,0.0001646]
[1764876323194,0.0109662,91164.0,91156.0,0.0001646]
[1764876323586,0.00242002,91157.0,91156.0,0.0001646]
[1764876323789,0.001,91157.0,91156.0,0.2796746]
[1764876324097,0.0109642,91180.0,91156.0,0.5580046]
[1764876324285,0.0109623,91196.0,91156.0,0.0001646]
[1764876324286,0.0109655,91169.0,91156.0,0.0001646]
[1764876324593,0.001,91157.0,91156.0,0.2806746]
[1764876324989,0.56848002,91157.0,91156.0,0.0011646]
[1764876326391,0.56748002,91157.0,91156.0,0.0001646]
[1764876326685,0.56748002,91157.0,91156.0,0.001]
[1764876327194,0.01538702,91157.0,91156.0,0.55884]
[1764876327398,0.002,91157.0,91156.0,0.55884]
[1764876327591,0.0109671,91156.0,91147.0,0.0111327]
[1764876327899,0.52164486,91157.0,91156.0,0.001]
[1764876328096,0.29524,91157.0,91156.0,0.001]
[1764876328485,0.29624,91157.0,91156.0,0.001]
[1764876328791,0.56806,91157.0,91156.0,0.001]
[1764876328990,0.003,91157.0,91156.0,0.28051]
[1764876329490,0.010968,91148.0,91147.0,0.0011646]
[1764876329695,0.57844802,91148.0,91147.0,0.0011646]
[1764876329893,0.57844802,91148.0,91122.0,0.0109711]
[1764876330096,0.0109705,91128.0,91117.0,0.0109717]
[1764876330307,0.0109712,91122.0,91113.0,0.0109722]
[1764876330496,0.22640486,91120.0,91117.0,0.0109717]
[1764876330703,0.00242002,91118.0,91117.0,0.5688118]
[1764876330896,0.00242002,91118.0,91117.0,0.55784]
[1764876331095,0.22656946,91127.0,91122.0,0.0109711]
[1764876331292,0.0109712,91122.0,91114.0,0.010972]
[1764876331493,0.0109711,91123.0,91116.0,0.0109718]
[1764876331698,0.22640486,91124.0,91122.0,0.27951]
[1764876331999,0.00242002,91123.0,91122.0,0.27951]
[1764876332993,0.01339102,91123.0,91122.0,0.28251]
[1764876333188,0.30663102,91123.0,91122.0,0.003]
[1764876333397,0.57845102,91123.0,91122.0,0.003]
[1764876333596,0.29324,91109.0,91108.0,0.0001646]
[1764876333802,0.00342002,91123.0,91108.0,0.0001646]
[1764876333803,0.22640486,91118.0,91108.0,0.0001646]
[1764876334094,0.001,91123.0,91108.0,0.0001646]
[1764876334301,0.22640486,91120.0,91117.0,0.0109718]
[1764876334499,0.00242002,91118.0,91117.0,0.0109718]
[1764876334702,0.001,91123.0,91122.0,0.0109712]
[1764876334901,0.001,91123.0,91108.0,0.0041646]
[1764876334902,0.0109714,91120.0,91108.0,0.0041646]
[1764876335103,0.0109718,91117.0,91108.0,0.0041646]
[1764876335297,0.22640486,91120.0,91114.0,0.0109721]
[1764876335502,0.00242002,91115.0,91114.0,0.0109721]
[1764876335903,0.00242002,91115.0,91108.0,0.0151646]
[1764876335904,0.50791,91109.0,91108.0,0.0151646]
[1764876336100,0.51033002,91109.0,91108.0,0.0001646]
[1764876336300,0.51033002,91109.0,91108.0,0.0091646]
[1764876336808,0.51033002,91109.0,91108.0,0.0001646]
[1764876337194,0.001,91115.0,91114.0,0.5318021]
[1764876337395,0.00342002,91115.0,91114.0,0.5318021]
[1764876337702,0.001,91115.0,91114.0,0.5318021]
[1764876338606,0.0001646,91127.0,91121.0,0.0109713]
[1764876338795,0.00258462,91127.0,91125.0,0.0109707]
[1764876339000,0.00242002,91126.0,91125.0,0.0109707]
[1764876339396,0.00242002,91126.0,91118.0,0.52083]
[1764876339604,0.010972,91116.0,91114.0,0.001]
[1764876339811,0.0001646,91127.0,91114.0,0.52483]
[1764876339812,0.001,91115.0,91114.0,0.52483]
[1764876340206,0.0001646,91127.0,91114.0,0.001]
[1764876340506,0.001,91126.0,91125.0,0.2770007]
[1764876340709,0.00342002,91126.0,91125.0,0.26603]
[1764876341203,0.001,91126.0,91125.0,0.52183]
[1764876341402,0.0109684,91146.0,91128.0,0.0109704]
[1764876341600,0.22640486,91150.0,91125.0,0.001]
[1764876341905,0.22640486,91140.0,91120.0,0.07841]
[1764876342105,0.22640486,91140.0,91138.0,0.0109692]
[1764876342299,0.22640486,91150.0,91140.0,0.010969]
[1764876342504,0.007,91146.0,91145.0,0.52083]
[1764876342999,0.22640486,91150.0,91145.0,0.52083]
[1764876343205,0.22640486,91150.0,91136.0,0.1089946]
[1764876343206,0.005,91140.0,91139.0,0.4970691]
[1764876344411,0.006,91140.0,91139.0,0.4970691]
[1764876345210,0.001,91140.0,91139.0,0.4970691]
[1764876345706,0.001,91140.0,91136.0,0.1462046]
[1764876345707,0.00016427,91154.0,91136.0,0.1462046]
[1764876346015,0.22640486,91180.0,91155.0,0.0109671]
[1764876346210,0.0109651,91173.0,91172.0,0.24382]
[1764876346512,0.0109647,91176.0,91173.0,0.010965]
[1764876346706,0.00242002,91174.0,91173.0,0.497065]
[1764876346912,0.0109631,91190.0,91168.0,0.14604]
[1764876347213,0.0109624,91195.0,91189.0,0.010963]
[1764876347404,0.00242002,91190.0,91189.0,0.497063]
[1764876347599,0.00242002,91190.0,91183.0,0.00016451]
[1764876347804,0.0109631,91190.0,91183.0,0.01112821]
[1764876348408,0.0109623,91196.0,91183.0,0.00016451]
[1764876349012,0.00027411,91206.0,91205.0,0.4861]
[1764876349206,0.00269413,91206.0,91205.0,0.4861]
[1764876349707,0.00269413,91206.0,91183.0,0.00016451]
[1764876349708,0.001,91190.0,91189.0,0.4861]
[1764876350312,0.00242002,91190.0,91189.0,0.4861]
[1764876350499,0.22640486,91200.0,91189.0,0.4861]
[1764876351112,0.0109628,91192.0,91189.0,0.4871]
[1764876351410,0.22640486,91200.0,91189.0,0.4871]
[1764876351614,0.00127411,91206.0,91189.0,0.4871]
[1764876351802,0.22640486,91200.0,91189.0,0.4871]
[1764876352007,0.22640486,91200.0,91190.0,0.010963]
[1764876352201,0.00027411,91206.0,91190.0,0.010963]
[1764876352412,0.0109617,91202.0,91196.0,0.0109623]
[1764876352615,0.0109617,91202.0,91192.0,0.0109626]
[1764876352824,0.01423531,91206.0,91201.0,0.24382]
[1764876353020,0.00242002,91202.0,91201.0,0.4861]
[1764876353313,0.0109614,91203.0,91201.0,0.4861]
[1764876353514,0.0109614,91203.0,91202.0,0.4861]
[1764876353709,0.00327411,91206.0,91202.0,0.4861]
[1764876353911,0.00242002,91203.0,91202.0,0.4861]
[1764876354120,0.00242002,91203.0,91201.0,0.001]
[1764876354121,0.4879215,91202.0,91201.0,0.001]
[1764876354316,0.25244152,91202.0,91201.0,0.001]
[1764876354619,0.01338152,91202.0,91201.0,0.001]
[1764876355210,0.01223521,91206.0,91201.0,0.001]
[1764876355411,0.00242002,91202.0,91201.0,0.4861]
[1764876355622,0.01338152,91202.0,91201.0,0.4861]
[1764876355810,0.00242002,91202.0,91192.0,0.24382]
[1764876356122,0.00242002,91193.0,91192.0,0.24382]
[1764876356320,0.47938002,91193.0,91183.0,0.00016451]
[1764876356509,0.0109629,91191.0,91183.0,0.00016451]
[1764876356716,0.0109632,91189.0,91186.0,0.0109634]
[1764876357016,0.23906,91184.0,91183.0,0.00016451]
[1764876357321,0.47938002,91184.0,91183.0,0.00216451]
[1764876357620,0.00242002,91184.0,91168.0,0.0109656]
[1764876357811,0.22640486,91180.0,91148.0,0.010968]
[1764876358012,0.0109648,91176.0,91171.0,0.0109652]
[1764876358206,0.0109643,91179.0,91174.0,0.0109648]
[1764876358411,0.0109653,91172.0,91150.0,0.22640486]
[1764876358617,0.0109654,91170.0,91166.0,0.0109658]
[1764876358922,0.0109654,91170.0,91153.0,0.00016451]
[1764876358923,0.00242002,91167.0,91153.0,0.00016451]
[1764876359118,0.00242002,91167.0,91153.0,0.24398451]
[1764876359119,0.0109673,91154.0,91153.0,0.24398451]
[1764876359421,0.4879273,91154.0,91153.0,0.00016451]
[1764876359818,0.47696,91153.0,91152.0,0.009]
[1764876360022,0.4879283,91146.0,91136.0,0.0109695]
[1764876360206,0.4879283,91146.0,91125.0,0.14604]
[1764876360207,0.49034832,91146.0,91125.0,0.14604]
[1764876360407,0.0109705,91128.0,91110.0,0.14604]
[1764876360616,0.001,91154.0,91110.0,0.37244486]
[1764876360821,0.0001646,91141.0,91140.0,0.497069]
[1764876361318,0.0027084,91141.0,91123.0,0.0001646]
[1764876361509,0.22640486,91140.0,91123.0,0.0001646]
[1764876361708,0.15146,91136.0,91130.0,0.0109702]
[1764876361922,0.00242002,91131.0,91130.0,0.4970702]
[1764876362310,0.23906,91139.0,91138.0,0.0109692]
[1764876362617,0.23906,91139.0,91123.0,0.0001646]
[1764876362618,0.47938002,91139.0,91133.0,0.0109698]
[1764876362811,0.00028838,91141.0,91140.0,0.4861]
[1764876363122,0.0027084,91141.0,91140.0,0.4861]
[1764876363320,0.00028838,91141.0,91140.0,0.4861]
[1764876364217,0.0027084,91141.0,91140.0,0.24382]
[1764876364422,0.010969,91140.0,91138.0,0.004]
[1764876364626,0.4739309,91124.0,91110.0,0.14604]
[1764876364924,0.47402487,91124.0,91111.0,0.0109724]
[1764876365114,0.47402487,91124.0,91106.0,0.0109731]
[1764876365420,0.0109721,91115.0,91106.0,0.0109731]
[1764876365615,0.00242002,91107.0,91106.0,0.4787931]
[1764876366217,0.00309397,91124.0,91101.0,0.0109736]
[1764876366422,0.003,91115.0,91106.0,0.02]
[1764876366618,0.003,91115.0,91114.0,0.46782]
[1764876367321,9.397e-05,91124.0,91115.0,0.010972]
[1764876367524,9.397e-05,91124.0,91123.0,0.478791]
[1764876367720,0.00251399,91124.0,91123.0,0.46782]
[1764876368322,9.397e-05,91124.0,91123.0,0.46782]
[1764876368714,0.00451399,91124.0,91123.0,0.46782]
[1764876369125,0.00209397,91124.0,91123.0,0.47082]
[1764876369816,0.0001646,91133.0,91132.0,0.47879]
[1764876370124,0.43560695,91170.0,91132.0,0.01097]
[1764876370327,0.0109651,91173.0,91140.0,0.42151695]
[1764876370626,0.1424,91185.0,91140.0,0.42151695]
[1764876370627,0.010963,91191.0,91183.0,0.0109638]
[1764876370926,0.05734963,91206.0,91183.0,0.0109638]
[1764876370927,0.00242002,91184.0,91183.0,0.46782]
[1764876371325,4.689e-05,91190.0,91187.0,0.0109633]
[1764876371527,4.689e-05,91190.0,91187.0,0.2393233]
[1764876371726,0.00242002,91188.0,91187.0,0.46782]
[1764876372627,0.00804689,91190.0,91189.0,0.46782]
[1764876372827,0.01046691,91190.0,91189.0,0.46782]
[1764876374022,4.689e-05,91190.0,91189.0,0.46782]
[1764876374223,0.0109608,91208.0,91184.0,0.13737]
[1764876374424,0.42654695,91200.0,91177.0,0.0109645]
[1764876374626,0.01,91190.0,91185.0,0.0109636]
[1764876374819,0.01,91190.0,91189.0,0.4787831]
[1764876375021,0.01,91190.0,91189.0,0.46782]
[1764876375222,0.0109621,91197.0,91189.0,0.46782]
[1764876375430,0.01427411,91206.0,91174.0,0.00016449]
[1764876375431,0.01427411,91206.0,91200.0,0.0109617]
[1764876375930,0.01427411,91206.0,91205.0,0.46782]
[1764876376329,0.05707552,91240.0,91216.0,0.0109598]
[1764876376627,0.0109593,91221.0,91219.0,0.00016449]
[1764876376825,0.00242002,91220.0,91219.0,0.00016449]
[1764876377024,0.00242002,91220.0,91219.0,0.46798449]
[1764876377234,0.0109587,91226.0,91219.0,0.46798449]
[1764876377524,0.0109587,91226.0,91225.0,0.23946]
[1764876377723,0.0109582,91230.0,91229.0,0.23946]
[1764876377924,0.0109594,91220.0,91219.0,0.23962449]
[1764876378131,0.0119594,91220.0,91219.0,0.23962449]
[1764876378334,0.0119594,91220.0,91219.0,0.00016449]
[1764876378335,0.4749194,91220.0,91219.0,0.00016449]
[1764876378516,0.4749194,91220.0,91197.0,0.0109621]
[1764876378827,0.0109613,91204.0,91203.0,0.46782]
[1764876379129,0.0109604,91212.0,91201.0,0.0109616]
[1764876379333,0.0109608,91209.0,91197.0,0.0109621]
[1764876379631,0.0109607,91210.0,91200.0,0.0109617]
[1764876379827,0.0109609,91208.0,91196.0,0.0109622]
[1764876380023,0.00016449,91212.0,91194.0,0.00016449]
[1764876380024,0.00016449,91212.0,91211.0,0.46782]
[1764876380221,0.05707552,91252.0,91229.0,0.46782]
[1764876380222,0.28414695,91250.0,91229.0,0.46782]
[1764876380421,0.010958,91232.0,91231.0,0.46782]
[1764876380627,0.0109575,91236.0,91231.0,0.46782]
[1764876380935,0.00242002,91232.0,91231.0,0.46782]
[1764876381137,0.28414695,91241.0,91218.0,0.0109596]
[1764876381324,0.28414695,91241.0,91222.0,0.00016449]
[1764876381634,0.007,91232.0,91231.0,0.001]
[1764876381837,0.007,91232.0,91231.0,0.46882]
[1764876382226,0.0051741,91232.0,91231.0,0.46882]
[1764876383429,0.0061741,91232.0,91231.0,0.46882]
[1764876386035,0.017132,91232.0,91231.0,0.46882]
[1764876386331,0.0061741,91232.0,91231.0,0.46882]
[1764876387730,0.4691341,91232.0,91231.0,0.001]
[1764876388235,0.2215541,91232.0,91231.0,0.22089]
[1764876388427,0.4292841,91232.0,91231.0,0.001]
[1764876388830,0.4292841,91232.0,91231.0,0.42913]
[1764876388831,0.0061741,91232.0,91231.0,0.42913]
[1764876390346,0.4292841,91232.0,91231.0,0.001]
[1764876390723,0.0061741,91232.0,91231.0,0.42913]
[1764876391233,0.00027387,91286.0,91270.0,0.42813]
[1764876391427,0.2263334,91270.0,91269.0,0.0001644]
[1764876391628,0.42311,91270.0,91269.0,0.0001644]
[1764876391833,0.00027387,91286.0,91273.0,0.010953]
[1764876392036,0.42311,91277.0,91276.0,0.0109525]
[1764876392235,0.21538,91277.0,91269.0,0.0001644]
[1764876392539,0.00327387,91286.0,91285.0,0.42813]
[1764876393128,0.0109489,91308.0,91296.0,0.0109502]
[1764876393329,0.0109482,91314.0,91293.0,0.0001643]
[1764876393528,0.0109482,91314.0,91306.0,0.010949]
[1764876393731,0.0109475,91319.0,91293.0,0.0001643]
[1764876393927,0.0109475,91320.0,91318.0,0.4238]
[1764876394140,0.00242002,91319.0,91318.0,0.4238]
[1764876394331,0.00242002,91319.0,91301.0,1.5]
[1764876394531,0.3608,91302.0,91301.0,1.5]
[1764876396034,0.3608,91312.0,91311.0,0.4183]
[1764876396436,0.0109494,91304.0,91301.0,1.5]
[1764876396633,0.56715002,91302.0,91301.0,1.5]
[1764876396939,0.3608,91312.0,91311.0,0.4183]
[1764876397132,0.3618,91312.0,91300.0,0.0109497]
[1764876397439,0.3608,91304.0,91301.0,1.5]
[1764876397644,0.3628,91304.0,91303.0,0.21439]
[1764876397852,0.002,91304.0,91303.0,0.4183]
[1764876398142,0.002,91304.0,91303.0,0.21439]
[1764876398444,0.41858,91294.0,91293.0,0.0001643]
[1764876398738,0.77938,91294.0,91293.0,0.0001643]
[1764876399134,0.7608,91294.0,91262.0,0.0109543]
[1764876399333,0.010953,91273.0,91267.0,0.0109537]
[1764876399546,0.20635002,91268.0,91264.0,0.010954]
[1764876399730,0.371753,91274.0,91264.0,0.225344]
[1764876400039,0.00242002,91265.0,91264.0,0.429254]
[1764876400235,0.00242002,91265.0,91264.0,0.4183]
[1764876400943,0.20393,91261.0,91260.0,0.0001643]
[1764876401142,0.20635002,91261.0,91260.0,0.0001643]
[1764876401441,0.00242002,91261.0,91260.0,0.2145543]
[1764876401834,0.00242002,91261.0,91260.0,0.4184643]
[1764876402143,0.371753,91274.0,91260.0,0.0001643]
[1764876402335,0.0109533,91271.0,91260.0,0.0041643]
[1764876402743,0.0109528,91275.0,91270.0,0.0109533]
[1764876402939,0.00242002,91271.0,91270.0,0.4292533]
[1764876403143,0.00242002,91271.0,91260.0,0.0041643]
[1764876403334,0.00242002,91271.0,91260.0,0.0001643]
[1764876403536,0.20393,91261.0,91260.0,0.0021643]
[1764876403735,0.41858,91261.0,91260.0,0.0021643]
[1764876403932,0.3608,91264.0,91261.0,0.0109545]
[1764876404138,0.0109545,91261.0,91260.0,0.0021643]
[1764876404435,0.43195452,91261.0,91260.0,0.0021643]
[1764876404635,0.79275452,91261.0,91260.0,0.0021643]
[1764876404837,0.010957,91240.0,91236.0,0.0001048]
[1764876405044,0.20635002,91237.0,91236.0,0.0001048]
[1764876405246,0.00242002,91237.0,91236.0,0.2144948]
[1764876406240,0.00442002,91237.0,91236.0,0.4434048]
[1764876406444,0.002,91237.0,91236.0,0.4434048]
[1764876407739,0.002,91237.0,91236.0,0.8042048]
[1764876408047,0.00016441,91246.0,91245.0,0.4292564]
[1764876408647,0.3608,91269.0,91268.0,0.4183]
[1764876409348,0.20784,91267.0,91261.0,0.0109544]
[1764876409648,0.20784,91267.0,91254.0,0.3608]
[1764876409649,0.0109548,91259.0,91255.0,0.00016441]
[1764876409837,0.3608,91269.0,91258.0,0.39135]
[1764876410146,0.3608,91269.0,91264.0,0.39135]
[1764876410448,0.3608,91269.0,91268.0,0.4023036]
[1764876411544,0.56864,91269.0,91264.0,0.010954]
[1764876411840,0.3717536,91269.0,91268.0,0.1993736]
[1764876412048,0.3608,91269.0,91268.0,0.4023036]
[1764876412245,0.3608,91269.0,91268.0,0.4043036]
[1764876412742,0.3608,91269.0,91268.0,0.4023036]
[1764876412933,0.00016391,91273.0,91272.0,0.4023031]
[1764876413137,0.3608,91287.0,91272.0,0.4023031]
[1764876413138,0.3608,91287.0,91286.0,0.4023015]
[1764876413338,0.20784,91284.0,91283.0,0.0109518]
[1764876413538,0.21026002,91284.0,91283.0,0.0109518]
[1764876413742,0.00242002,91284.0,91283.0,0.0109518]
[1764876414743,0.3727514,91287.0,91286.0,0.0109515]
[1764876414942,0.3618,91287.0,91286.0,0.1993715]
[1764876415249,0.0109506,91294.0,91293.0,0.0109505]
[1764876415437,0.00242002,91294.0,91293.0,0.4023005]
[1764876415840,0.0109497,91301.0,91300.0,0.18842]
[1764876416042,0.3608,91309.0,91301.0,0.1993697]
[1764876416247,0.3717488,91309.0,91301.0,0.4022997]
[1764876416447,0.0109488,91309.0,91301.0,0.4022997]
[1764876416643,0.0109483,91313.0,91301.0,0.4022997]
[1764876416949,0.0109486,91310.0,91301.0,0.4022997]
[1764876417536,0.010948,91316.0,91309.0,0.39135]
[1764876417741,0.00242002,91310.0,91309.0,0.39135]
[1764876418048,0.3608,91319.0,91318.0,0.39135]
[1764876418641,0.3608,91319.0,91302.0,0.3608]
[1764876418642,0.0109469,91324.0,91310.0,0.3608]
[1764876418842,0.00027375,91326.0,91314.0,0.18842]
[1764876418843,0.0109481,91315.0,91314.0,0.18842]
[1764876419037,0.0109474,91320.0,91315.0,0.010948]
[1764876419243,0.3608,91323.0,91311.0,0.0109484]
[1764876419244,0.00242002,91316.0,91311.0,0.0109484]
[1764876419547,0.3608,91323.0,91322.0,0.18842]
[1764876419747,0.3608,91323.0,91307.0,0.5206]
[1764876419748,0.00027375,91326.0,91325.0,0.39135]
[1764876419948,0.3608,91340.0,91339.0,0.39135]
[1764876420146,0.3608,91355.0,91350.0,0.0109437]
[1764876420370,0.3608,91355.0,91330.0,0.64511126]
[1764876420371,0.20784,91357.0,91356.0,0.010943]
[1764876420649,0.77756002,91357.0,91356.0,0.010943]
[1764876420840,0.41676002,91357.0,91347.0,0.00016422]
[1764876421041,0.41676002,91348.0,91347.0,0.00016422]
[1764876421243,0.00242002,91348.0,91347.0,0.39151422]
[1764876421443,0.3608,91362.0,91347.0,0.39151422]
[1764876421444,0.3608,91383.0,91365.0,0.402292]
[1764876421748,0.0109404,91379.0,91365.0,0.75215]
[1764876421951,0.3608,91383.0,91382.0,0.4022899]
[1764876422248,0.3608,91393.0,91383.0,0.0109398]
[1764876422438,0.00242002,91384.0,91372.0,0.3608]
[1764876422642,0.00242002,91384.0,91366.0,1.5]
[1764876422643,0.3608,91382.0,91371.0,0.52052]
[1764876423038,0.3608,91390.0,91380.0,0.0109401]
[1764876423237,0.3608,91390.0,91371.0,0.52052]
[1764876423238,0.3608,91390.0,91388.0,0.0109391]
[1764876423457,0.00242002,91389.0,91388.0,0.0109391]
[1764876423752,0.0119404,91379.0,91373.0,0.52044]
[1764876423947,0.0119404,91379.0,91371.0,0.0109412]
[1764876423948,0.00242002,91374.0,91371.0,0.0109412]
[1764876424140,0.3608,91377.0,91371.0,0.0109412]
[1764876424341,0.0109396,91385.0,91375.0,0.0109407]
[1764876424548,0.00242002,91376.0,91369.0,0.0109414]
[1764876424748,0.0109401,91381.0,91369.0,0.0109414]
[1764876424955,0.3108,91382.0,91373.0,0.010941]
[1764876425159,0.00242002,91374.0,91367.0,0.0109417]
[1764876425337,0.00242002,91374.0,91366.0,1.5]
[1764876425338,0.38622,91372.0,91371.0,0.003]
[1764876425539,0.74702,91372.0,91371.0,0.003]
[1764876426243,0.3608,91372.0,91371.0,0.19808]
[1764876426439,0.3608,91372.0,91371.0,0.39296]
[1764876427043,0.3108,91382.0,91377.0,0.0109405]
[1764876427251,0.001,91381.0,91380.0,0.38996]
[1764876427643,0.3108,91382.0,91381.0,0.4009001]
[1764876427843,0.4108,91394.0,91371.0,0.002]
[1764876427844,0.4108,91394.0,91392.0,0.0109387]
[1764876428048,0.00242002,91393.0,91392.0,0.0109387]
[1764876428439,0.18866,91385.0,91384.0,0.00016413]
[1764876428638,0.74944002,91385.0,91384.0,0.00016413]
[1764876429040,0.0109418,91367.0,91361.0,0.0109424]
[1764876429242,0.3608,91385.0,91375.0,0.19508]
[1764876429440,0.36322002,91376.0,91375.0,0.38996]
[1764876429644,0.18866,91372.0,91366.0,0.52024]
[1764876429852,0.18866,91362.0,91361.0,0.0109424]
[1764876430155,0.3608,91368.0,91365.0,0.0109419]
[1764876430454,0.0001632,91371.0,91368.0,0.0109416]
[1764876430640,0.00258322,91371.0,91368.0,0.0109416]
[1764876430845,0.00242002,91369.0,91368.0,0.2060216]
[1764876431045,0.0001632,91371.0,91370.0,0.19508]
[1764876431249,0.0001632,91371.0,91370.0,0.38996]
[1764876431653,0.38880322,91371.0,91368.0,0.0109416]
[1764876431848,0.0001632,91371.0,91368.0,0.0139416]
[1764876432158,0.00258322,91371.0,91370.0,0.38996]
[1764876432551,0.38622,91369.0,91368.0,0.003]
[1764876432747,0.38864002,91369.0,91368.0,0.003]
[1764876432942,0.00242002,91369.0,91368.0,0.003]
[1764876433148,0.0001632,91371.0,91369.0,0.0109415]
[1764876433350,0.0001632,91371.0,91370.0,0.40596]
[1764876433351,0.0011632,91371.0,91370.0,0.40596]
[1764876433853,0.0001632,91371.0,91370.0,0.38996]
[1764876434655,0.3608,91388.0,91370.0,0.39396]
[1764876434849,0.3608,91388.0,91387.0,0.4008993]
[1764876435046,0.3608,91396.0,91393.0,0.4008986]
[1764876435446,0.38622,91390.0,91366.0,0.3608]
[1764876435750,0.38864002,91386.0,91385.0,0.0109396]
[1764876436055,0.11052,91395.0,91393.0,0.0109386]
[1764876436254,0.3608,91414.0,91393.0,0.4008986]
[1764876436950,0.3608,91414.0,91405.0,0.2060172]
[1764876437154,0.38622,91398.0,91397.0,0.0109382]
[1764876437360,0.38864002,91398.0,91397.0,0.0109382]
[1764876437662,0.74944002,91398.0,91397.0,0.0109382]
[1764876438757,0.74944002,91398.0,91393.0,0.001]
[1764876438758,0.3971585,91394.0,91393.0,0.00062521]
[1764876439059,0.38622,91374.0,91365.0,0.3608]
[1764876439250,0.38864002,91366.0,91365.0,0.371742]
[1764876439452,0.38864002,91366.0,91355.0,1.8717431]
[1764876439453,0.38622,91357.0,91355.0,0.3608]
[1764876439651,0.38622,91357.0,91337.0,0.3608]
[1764876439652,0.38622,91355.0,91354.0,0.0109432]
[1764876439853,0.38622,91351.0,91350.0,0.0109437]
[1764876440054,0.38864002,91351.0,91350.0,0.0109437]
[1764876441145,0.38864002,91351.0,91350.0,0.0139437]
[1764876442256,0.38864002,91351.0,91350.0,0.003]
[1764876442456,0.00242002,91351.0,91350.0,0.003]
[1764876442651,0.38864002,91351.0,91350.0,0.003]
[1764876443258,0.38622,91348.0,91347.0,0.0109441]
[1764876443461,0.74944002,91348.0,91347.0,0.0109441]
[1764876444447,0.36322002,91348.0,91347.0,0.004]
[1764876444654,0.38622,91347.0,91346.0,0.0109443]
[1764876445455,0.38622,91346.0,91345.0,0.00016413]
[1764876445650,0.38864002,91346.0,91345.0,0.00016413]
[1764876446454,0.38864002,91346.0,91345.0,0.01110853]
[1764876446764,0.38864002,91346.0,91345.0,0.01510853]
[1764876448354,0.38864002,91346.0,91345.0,0.01410853]
[1764876449962,0.39958432,91346.0,91345.0,0.00316413]
[1764876450167,0.39958432,91346.0,91345.0,0.00216413]
[1764876450661,0.49345,91322.0,91321.0,0.3717473]
[1764876450866,0.49345,91322.0,91321.0,0.0109473]
[1764876451365,0.38622,91328.0,91327.0,0.0109465]
[1764876451567,0.38622,91328.0,91321.0,0.0109473]
[1764876451568,0.49674,91336.0,91335.0,0.0109456]
[1764876452762,0.49874,91336.0,91335.0,0.0109456]